bitfinex-derivatives/quotes_BTCF0:USTF0_20241003
["timestamp","ask_amount","ask_price","bid_price","bid_amount"]
[1727992245474,0.082257,60788.0,60787.0,0.04907998]
[1727992245984,1.175777,60788.0,60787.0,0.04907998]
[1727992246276,0.082258,60787.0,60786.0,0.04907998]
[1727992247070,0.443058,60787.0,60786.0,0.04907998]
[1727992247372,1.536578,60787.0,60786.0,0.04907998]
[1727992247669,1.536578,60787.0,60785.0,0.04907998]
[1727992247670,0.082259,60786.0,60785.0,0.04907998]
[1727992248173,1.175779,60786.0,60785.0,0.04907998]
[1727992248369,1.175779,60786.0,60783.0,0.12]
[1727992248370,1.09352,60786.0,60784.0,0.04907998]
[1727992248576,0.082262,60784.0,60783.0,0.14978807]
[1727992249176,0.115062,60784.0,60783.0,0.14978807]
[1727992249901,0.115062,60784.0,60783.0,0.19881433]
[1727992250472,0.117062,60784.0,60783.0,0.14978807]
[1727992251076,0.082268,60780.0,60779.0,0.0024677]
[1727992252781,0.084268,60780.0,60779.0,0.0024677]
[1727992253384,1.178868,60780.0,60779.0,0.0024677]
[1727992254582,1.178868,60780.0,60772.0,0.543038]
[1727992254583,0.082277,60773.0,60772.0,0.543038]
[1727992254783,0.082277,60773.0,60772.0,0.663038]
[1727992255183,0.446068,60780.0,60772.0,0.663038]
[1727992255184,0.082274,60776.0,60772.0,0.663038]
[1727992255479,0.082273,60776.0,60775.0,0.12]
[1727992256275,0.3618,60780.0,60777.0,0.082272]
[1727992256470,0.3618,60780.0,60779.0,0.12]
[1727992256875,0.3608,60780.0,60779.0,0.12]
[1727992257683,0.3618,60780.0,60779.0,0.12]
[1727992258183,0.001,60780.0,60779.0,0.12]
[1727992259383,0.001,60780.0,60779.0,0.202269]
[1727992259584,0.003,60780.0,60779.0,0.202269]
[1727992260677,0.082267,60781.0,60779.0,0.202269]
[1727992260878,0.002,60780.0,60778.0,0.04902626]
[1727992261073,0.082269,60779.0,60778.0,0.04902626]
[1727992261279,0.082269,60779.0,60775.0,0.26774186]
[1727992261280,0.002,60780.0,60777.0,0.04902626]
[1727992261579,0.08227,60778.0,60777.0,0.04902626]
[1727992261778,0.082272,60777.0,60776.0,0.04902626]
[1727992262982,0.084272,60777.0,60776.0,0.04902626]
[1727992263382,0.084272,60777.0,60776.0,0.05102626]
[1727992264686,0.084272,60777.0,60776.0,0.002]
[1727992273499,0.084272,60777.0,60776.0,0.06746786]
[1727992275298,0.084272,60777.0,60776.0,0.002]
[1727992277199,0.445072,60777.0,60776.0,0.002]
[1727992277792,0.445072,60777.0,60776.0,1.502]
[1727992278596,0.445072,60777.0,60776.0,0.002]
[1727992279225,0.084272,60777.0,60776.0,0.002]
[1727992280900,0.084272,60777.0,60776.0,0.11020585]
[1727992287795,0.084272,60777.0,60776.0,0.05117704]
[1727992289898,0.084272,60777.0,60776.0,0.0511764]
[1727992290302,0.084272,60777.0,60776.0,0.002]
[1727992292005,0.084272,60777.0,60776.0,0.05117797]
[1727992292199,0.084272,60777.0,60776.0,0.002]
[1727992293004,0.084272,60777.0,60776.0,0.05117679]
[1727992293200,0.084272,60777.0,60776.0,0.002]
[1727992293400,0.084272,60777.0,60776.0,0.051176]
[1727992295707,0.084272,60777.0,60776.0,0.10996521]
[1727992301908,0.084272,60777.0,60776.0,0.19192723]
[1727992302612,0.084272,60777.0,60776.0,0.10996521]
[1727992302816,0.084272,60777.0,60776.0,0.002]
[1727992303022,1.21737084,60777.0,60776.0,0.002]
[1727992304422,1.177872,60777.0,60776.0,0.002]
[1727992305324,1.21730313,60777.0,60776.0,0.002]
[1727992306221,1.93890313,60777.0,60776.0,0.002]
[1727992309723,1.899472,60777.0,60776.0,0.002]
[1727992311123,1.899472,60777.0,60776.0,0.05113472]
[1727992311314,1.899472,60777.0,60776.0,0.002]
[1727992311513,1.899472,60777.0,60775.0,0.04913472]
[1727992311514,0.082273,60776.0,60775.0,0.04913472]
[1727992311714,0.575873,60776.0,60775.0,0.04913472]
[1727992311920,0.082277,60773.0,60772.0,0.06557846]
[1727992312428,1.175917,60773.0,60772.0,0.06557846]
[1727992313217,1.175917,60773.0,60772.0,0.06757846]
[1727992313616,0.575917,60773.0,60772.0,0.06757846]
[1727992314319,0.575917,60773.0,60772.0,0.07357846]
[1727992315023,0.936717,60773.0,60772.0,0.07357846]
[1727992316916,0.443077,60773.0,60772.0,0.07357846]
[1727992317526,0.082277,60773.0,60772.0,0.07357846]
[1727992317918,0.443077,60773.0,60772.0,0.07357846]
[1727992318526,0.082277,60773.0,60772.0,0.07357846]
[1727992318720,0.443077,60773.0,60772.0,0.07357846]
[1727992319120,0.082277,60773.0,60772.0,0.07357846]
[1727992319328,0.443077,60773.0,60772.0,0.07357846]
[1727992321522,0.082277,60773.0,60772.0,0.07357846]
[1727992321718,0.443077,60773.0,60772.0,0.07357846]
[1727992324819,0.082277,60773.0,60772.0,0.07357846]
[1727992325032,0.443077,60773.0,60772.0,0.07357846]
[1727992325233,0.443077,60773.0,60772.0,0.008]
[1727992325732,0.082277,60773.0,60772.0,0.008]
[1727992325927,0.443077,60773.0,60772.0,0.008]
[1727992326331,0.082277,60773.0,60772.0,0.008]
[1727992326534,0.443077,60773.0,60772.0,0.008]
[1727992326735,0.082277,60773.0,60772.0,0.008]
[1727992326931,0.443077,60773.0,60772.0,0.008]
[1727992328428,0.082277,60773.0,60772.0,0.10379645]
[1727992328928,0.082277,60773.0,60772.0,0.120578]
[1727992330629,0.5039791,60783.0,60772.0,0.0383]
[1727992330830,0.082272,60777.0,60775.0,0.14778645]
[1727992331030,0.082272,60777.0,60776.0,0.1521]
[1727992332233,0.082268,60780.0,60779.0,0.082269]
[1727992332438,0.3608,60784.0,60779.0,0.12]
[1727992332627,0.3608,60784.0,60780.0,0.06551245]
[1727992332827,0.3608,60784.0,60779.0,0.20197308]
[1727992333136,0.3608,60784.0,60783.0,0.0654851]
[1727992333441,0.443062,60784.0,60781.0,0.082266]
[1727992333639,0.443062,60784.0,60783.0,0.12]
[1727992333842,0.447062,60784.0,60783.0,0.12]
[1727992334334,0.002,60784.0,60783.0,0.202263]
[1727992334529,0.004,60784.0,60783.0,0.202263]
[1727992334942,0.004,60784.0,60783.0,0.30951578]
[1727992335140,0.004,60784.0,60783.0,0.39126291]
[1727992335333,0.002,60784.0,60783.0,0.30951578]
[1727992335842,0.00246845,60790.0,60783.0,0.22725278]
[1727992336138,0.00246845,60790.0,60789.0,0.12]
[1727992336746,0.00246845,60790.0,60789.0,0.1815]
[1727992337145,0.00446845,60790.0,60789.0,0.1815]
[1727992337536,0.00246845,60790.0,60789.0,0.1815]
[1727992337740,0.00446845,60790.0,60789.0,0.1825]
[1727992338535,0.00746845,60790.0,60789.0,0.1825]
[1727992340643,0.36826845,60790.0,60789.0,0.1825]
[1727992342437,0.36826845,60790.0,60789.0,0.21278736]
[1727992342840,0.36826845,60790.0,60789.0,0.29504236]
[1727992343249,0.00746845,60790.0,60789.0,0.29504236]
[1727992345845,0.005,60790.0,60789.0,0.89504236]
[1727992346150,0.005,60790.0,60789.0,1.38856236]
[1727992362959,0.005,60790.0,60789.0,0.8954121]
[1727992363158,0.005,60790.0,60789.0,1.4954121]
[1727992365559,0.005,60790.0,60789.0,0.8954121]
[1727992365752,0.005,60790.0,60789.0,1.49568684]
[1727992366363,0.005,60790.0,60789.0,1.59393644]
[1727992367160,0.005,60790.0,60789.0,0.99393644]
[1727992367454,0.005,60790.0,60789.0,1.59393644]
[1727992367659,0.005,60790.0,60789.0,0.99393644]
[1727992367860,0.005,60790.0,60789.0,1.59393644]
[1727992368956,0.005,60790.0,60789.0,1.95473644]
[1727992369150,0.005,60790.0,60789.0,1.85648684]
[1727992369862,0.005,60790.0,60789.0,1.62335699]
[1727992370054,0.005,60790.0,60789.0,1.98415699]
[1727992370254,0.005,60790.0,60789.0,1.38415699]
[1727992370557,0.005,60790.0,60789.0,1.62342969]
[1727992371460,0.005,60790.0,60789.0,1.02342969]
[1727992371652,0.005,60790.0,60789.0,1.62342969]
[1727992371958,0.005,60790.0,60789.0,1.02342969]
[1727992372955,0.005,60790.0,60789.0,0.52990969]
[1727992373162,0.005,60790.0,60789.0,1.02342969]
[1727992374864,0.0625,60798.0,60796.0,0.082246]
[1727992375054,0.0625,60798.0,60797.0,0.22714938]
[1727992376270,0.0625,60798.0,60797.0,0.22814938]
[1727992376458,0.0655,60798.0,60797.0,0.22814938]
[1727992377259,0.0655,60798.0,60797.0,0.22914938]
[1727992377859,0.0655,60798.0,60797.0,0.204245]
[1727992380765,0.0655,60798.0,60797.0,0.23331458]
[1727992383470,0.4263,60798.0,60797.0,0.23331458]
[1727992384865,0.4263,60798.0,60797.0,0.31522271]
[1727992385664,0.4263,60798.0,60797.0,0.23331458]
[1727992386065,0.4263,60798.0,60797.0,0.31522271]
[1727992386268,0.4263,60798.0,60797.0,0.19522271]
[1727992386466,0.4263,60798.0,60797.0,0.11331458]
[1727992386875,0.4263,60798.0,60797.0,0.19522271]
[1727992388270,0.4263,60798.0,60797.0,0.11331458]
[1727992389166,0.4263,60798.0,60797.0,0.30270658]
[1727992390676,0.0655,60798.0,60797.0,0.30270658]
[1727992390898,0.4263,60798.0,60797.0,0.30270658]
[1727992391073,0.4263,60798.0,60797.0,0.22079845]
[1727992391478,0.4263,60798.0,60797.0,0.30274552]
[1727992391679,0.4263,60798.0,60797.0,0.22079845]
[1727992392977,0.4263,60798.0,60797.0,0.11331458]
[1727992393983,0.0655,60798.0,60797.0,0.11331458]
[1727992401483,0.0655,60798.0,60797.0,0.19525877]
[1727992401787,0.0655,60798.0,60797.0,0.11331458]
[1727992403387,0.0338,60798.0,60797.0,0.19525877]
[1727992403590,0.0338,60798.0,60797.0,0.11331458]
[1727992403781,0.0338,60798.0,60797.0,0.19525877]
[1727992404284,0.0338,60798.0,60797.0,0.11331458]
[1727992404877,0.0338,60798.0,60797.0,0.19525877]
[1727992405493,0.0338,60798.0,60797.0,0.11331458]
[1727992405991,0.0338,60798.0,60797.0,0.19525877]
[1727992406177,0.0338,60798.0,60797.0,0.11331458]
[1727992407991,0.0338,60798.0,60797.0,0.30276237]
[1727992408891,0.0338,60798.0,60797.0,0.3027576]
[1727992409112,0.0338,60798.0,60797.0,0.19525877]
[1727992409295,0.0338,60798.0,60797.0,0.30278524]
[1727992409684,0.0338,60798.0,60797.0,0.19525877]
[1727992409995,0.0338,60798.0,60797.0,0.30279422]
[1727992410385,0.0338,60798.0,60797.0,0.22085003]
[1727992410586,0.0338,60798.0,60797.0,0.30280434]
[1727992410796,0.0338,60798.0,60797.0,0.22085003]
[1727992412196,0.0338,60798.0,60797.0,0.22076835]
[1727992414992,0.0338,60798.0,60797.0,0.11331458]
[1727992431303,0.0338,60798.0,60797.0,0.03106958]
[1727992438213,0.0338,60798.0,60797.0,0.22064301]
[1727992439514,0.0338,60798.0,60797.0,0.30288801]
[1727992440518,0.0338,60798.0,60797.0,0.30290073]
[1727992445205,0.0338,60798.0,60797.0,0.11331458]
[1727992445410,0.0308,60798.0,60797.0,0.11231458]
[1727992453231,0.0308,60798.0,60797.0,0.30140848]
[1727992453921,0.0308,60798.0,60797.0,0.19425475]
[1727992454713,0.0308,60798.0,60797.0,0.30141562]
[1727992456114,0.0308,60798.0,60797.0,0.11231458]
[1727992463319,0.0308,60798.0,60797.0,0.19425475]
[1727992468329,0.0308,60798.0,60797.0,0.11231458]
[1727992475260,0.0308,60798.0,60797.0,0.30157169]
[1727992476843,0.0308,60798.0,60797.0,0.21932669]
[1727992477038,0.113043,60798.0,60797.0,0.03006958]
[1727992477228,0.113043,60798.0,60797.0,0.21934801]
[1727992477937,0.113043,60798.0,60797.0,0.03006958]
[1727992478241,0.113043,60798.0,60797.0,0.21941436]
[1727992483348,0.113043,60798.0,60797.0,0.03006958]
[1727992490239,0.113043,60798.0,60797.0,0.11200975]
[1727992493451,0.113043,60798.0,60797.0,0.21940917]
[1727992493961,0.113043,60798.0,60797.0,0.11200975]
[1727992495844,0.113043,60798.0,60797.0,0.03006958]
[1727992504162,0.113043,60798.0,60797.0,0.21941793]
[1727992505355,0.113043,60798.0,60797.0,0.03006958]
[1727992508457,0.473843,60798.0,60797.0,0.03006958]
[1727992509961,0.51446371,60798.0,60797.0,0.03006958]
[1727992513572,0.473843,60798.0,60797.0,0.03006958]
[1727992516465,0.113043,60798.0,60797.0,0.03006958]
[1727992516863,0.473843,60798.0,60797.0,0.03006958]
[1727992520379,0.473843,60798.0,60797.0,0.07941205]
[1727992521578,0.473843,60798.0,60797.0,0.03006958]
[1727992522775,0.113043,60798.0,60797.0,0.03006958]
[1727992523484,0.473843,60798.0,60797.0,0.03006958]
[1727992524278,0.113043,60798.0,60797.0,0.03006958]
[1727992524481,0.473843,60798.0,60797.0,0.03006958]
[1727992524879,0.113043,60798.0,60797.0,0.03006958]
[1727992525275,0.473843,60798.0,60797.0,0.03006958]
[1727992525770,0.113043,60798.0,60797.0,0.03006958]
[1727992525971,0.473843,60798.0,60797.0,0.03006958]
[1727992528582,0.473843,60798.0,60797.0,0.11200975]
[1727992529875,0.113043,60798.0,60797.0,0.11200975]
[1727992530188,0.473843,60798.0,60797.0,0.11200975]
[1727992530784,0.113043,60798.0,60797.0,0.11200975]
[1727992530989,0.473843,60798.0,60797.0,0.11200975]
[1727992531782,0.113043,60798.0,60797.0,0.03006958]
[1727992532085,0.473843,60798.0,60797.0,0.03006958]
[1727992532983,0.113043,60798.0,60797.0,0.03006958]
[1727992533186,0.473843,60798.0,60797.0,0.03006958]
[1727992534190,0.113043,60798.0,60797.0,0.03006958]
[1727992534515,0.473843,60798.0,60797.0,0.03006958]
[1727992534882,0.113043,60798.0,60797.0,0.03006958]
[1727992535187,0.473843,60798.0,60797.0,0.03006958]
[1727992535880,0.113043,60798.0,60797.0,0.03006958]
[1727992536080,0.473843,60798.0,60797.0,0.03006958]
[1727992538876,0.113043,60798.0,60797.0,0.03006958]
[1727992539083,0.473843,60798.0,60797.0,0.03006958]
[1727992539981,0.113043,60798.0,60797.0,0.03006958]
[1727992540296,0.473843,60798.0,60797.0,0.03006958]
[1727992542195,0.473843,60798.0,60797.0,0.07942267]
[1727992542690,0.473843,60798.0,60797.0,0.21989556]
[1727992545094,0.473843,60798.0,60797.0,0.21989553]
[1727992545492,0.473843,60798.0,60797.0,0.21989175]
[1727992546490,0.113043,60798.0,60797.0,0.21989175]
[1727992546689,0.113043,60798.0,60797.0,0.03006958]
[1727992547896,0.3608,60801.0,60797.0,0.03006958]
[1727992548103,0.443039,60801.0,60798.0,0.082243]
[1727992549107,0.082241,60800.0,60798.0,0.082243]
[1727992549601,0.082241,60800.0,60797.0,0.03006958]
[1727992549799,0.082241,60800.0,60798.0,0.001]
[1727992550199,0.082241,60800.0,60798.0,0.002]
[1727992550816,0.082241,60800.0,60798.0,0.08425516]
[1727992551604,0.443041,60800.0,60798.0,0.08425516]
[1727992551804,0.082241,60800.0,60798.0,0.08425516]
[1727992551999,0.082242,60799.0,60798.0,0.08425516]
[1727992552199,0.082242,60799.0,60798.0,0.08325516]
[1727992552714,0.082242,60799.0,60798.0,0.08425516]
[1727992552907,0.443042,60799.0,60798.0,0.08425516]
[1727992553098,0.443042,60799.0,60798.0,0.08325516]
[1727992553292,0.443042,60799.0,60798.0,0.19208997]
[1727992553492,0.443042,60799.0,60798.0,0.08425516]
[1727992553895,0.443042,60799.0,60798.0,0.19210268]
[1727992554099,0.443042,60799.0,60798.0,0.19211321]
[1727992555105,0.443042,60799.0,60798.0,0.19209556]
[1727992556404,0.443042,60799.0,60798.0,0.1098404]
[1727992557704,0.443042,60799.0,60798.0,0.002]
[1727992558104,0.082242,60799.0,60798.0,0.002]
[1727992558305,0.443042,60799.0,60798.0,0.002]
[1727992559811,0.443042,60799.0,60798.0,0.0331]
[1727992563313,0.082242,60799.0,60798.0,0.0331]
[1727992565809,0.082242,60799.0,60798.0,0.14074086]
[1727992568011,0.082242,60799.0,60798.0,0.14073839]
[1727992569219,0.082242,60799.0,60798.0,0.10963839]
[1727992573016,0.082242,60799.0,60798.0,0.002]
[1727992580913,0.082242,60799.0,60798.0,0.10965411]
[1727992581316,0.0309,60800.0,60798.0,0.10965411]
[1727992581516,0.0309,60800.0,60799.0,0.10765411]
[1727992582617,0.0309,60800.0,60799.0,0.10865411]
[1727992583419,0.0309,60800.0,60799.0,0.10965411]
[1727992587724,0.0309,60800.0,60799.0,0.2083603]
[1727992587949,0.0309,60800.0,60799.0,0.10965411]
[1727992588625,0.3608,60803.0,60799.0,0.10965411]
[1727992588811,0.3608,60803.0,60802.0,0.202238]
[1727992590026,0.3608,60803.0,60802.0,0.203238]
[1727992590617,0.3608,60803.0,60802.0,0.204238]
[1727992593919,0.3608,60803.0,60802.0,0.28648082]
[1727992595928,0.3608,60803.0,60802.0,0.204238]
[1727992600528,0.082233,60806.0,60802.0,0.204238]
[1727992600730,0.3608,60803.0,60802.0,0.204238]
[1727992601231,0.3608,60803.0,60802.0,0.084238]
[1727992603642,0.082234,60805.0,60802.0,0.084238]
[1727992603936,0.3608,60803.0,60802.0,0.084238]
[1727992605637,0.3608,60803.0,60802.0,0.083238]
[1727992605831,0.3608,60803.0,60802.0,0.084238]
[1727992609538,0.3608,60803.0,60802.0,0.204238]
[1727992610038,0.3608,60803.0,60802.0,0.39416824]
[1727992610361,0.3608,60803.0,60802.0,0.39416481]
[1727992611033,0.3608,60803.0,60802.0,0.204238]
[1727992611839,0.112231,60807.0,60802.0,0.204238]
[1727992612139,0.04035936,60806.0,60802.0,0.204238]
[1727992612336,0.112231,60807.0,60802.0,0.204238]
[1727992612539,0.04035953,60806.0,60802.0,0.204238]
[1727992612748,0.112231,60807.0,60802.0,0.204238]
[1727992612943,0.112231,60807.0,60805.0,0.12]
[1727992615149,0.112231,60807.0,60806.0,0.12]
[1727992615944,0.15258389,60807.0,60806.0,0.12]
[1727992616237,0.112231,60807.0,60806.0,0.12]
[1727992616447,0.112231,60807.0,60806.0,0.121]
[1727992616847,0.112231,60807.0,60806.0,0.001]
[1727992617048,0.112231,60807.0,60806.0,0.121]
[1727992617738,0.112231,60807.0,60806.0,0.122]
[1727992617941,0.112231,60807.0,60806.0,0.18779179]
[1727992622245,0.112231,60807.0,60806.0,0.21684993]
[1727992622444,0.112231,60807.0,60806.0,0.15105814]
[1727992624749,0.03,60807.0,60806.0,0.15105814]
[1727992624945,0.03,60807.0,60806.0,0.23329014]
[1727992626549,0.03,60807.0,60806.0,0.11329014]
[1727992630448,0.07036812,60807.0,60806.0,0.11329014]
[1727992632946,0.03,60807.0,60806.0,0.17908193]
[1727992637456,0.03,60807.0,60806.0,0.11329014]
[1727992648066,0.07037889,60807.0,60806.0,0.11329014]
[1727992648666,0.15260989,60807.0,60806.0,0.11329014]
[1727992651466,0.12260989,60807.0,60806.0,0.11329014]
[1727992652563,0.12259528,60807.0,60806.0,0.11329014]
[1727992655067,0.082231,60807.0,60806.0,0.11329014]
[1727992658471,0.082231,60807.0,60806.0,0.23329014]
[1727992661379,0.00246751,60812.0,60806.0,1.44283492]
[1727992661574,0.00246751,60812.0,60811.0,0.202226]
[1727992662076,0.00246751,60812.0,60811.0,0.30974231]
[1727992662579,0.00246751,60812.0,60811.0,0.202226]
[1727992662771,0.00246751,60812.0,60811.0,0.28441429]
[1727992662970,0.00246751,60812.0,60811.0,0.202226]
[1727992664175,0.00246751,60812.0,60811.0,0.235626]
[1727992669783,0.00246751,60812.0,60811.0,0.596426]
[1727992670074,0.00246751,60812.0,60811.0,0.66217591]
[1727992671475,0.00246751,60812.0,60811.0,0.596426]
[1727992672176,0.00246751,60812.0,60811.0,0.66217591]
[1727992672482,0.00246751,60812.0,60811.0,0.596426]
[1727992672982,0.00246751,60812.0,60811.0,0.66217591]
[1727992673278,0.082214,60820.0,60817.0,0.082216]
[1727992673482,0.082214,60820.0,60819.0,0.12]
[1727992675299,0.082214,60820.0,60819.0,0.121]
[1727992675673,0.082214,60820.0,60819.0,0.122]
[1727992680300,0.082207,60825.0,60821.0,0.082211]
[1727992680601,0.082207,60825.0,60824.0,0.12]
[1727992681908,0.082207,60825.0,60824.0,0.121]
[1727992682208,0.082207,60825.0,60824.0,0.122]
[1727992684806,0.033,60826.0,60824.0,0.122]
[1727992685006,0.033,60826.0,60825.0,0.082207]
[1727992688402,0.033,60826.0,60825.0,0.13140219]
[1727992688998,0.033,60826.0,60825.0,0.082207]
[1727992690011,0.033,60826.0,60825.0,0.13135153]
[1727992690507,0.033,60826.0,60825.0,0.082207]
[1727992692828,0.033,60826.0,60824.0,0.18574991]
[1727992692829,0.0301,60834.0,60832.0,0.082196]
[1727992693003,0.0323,60833.0,60832.0,0.082196]
[1727992694008,0.0323,60833.0,60832.0,0.203196]
[1727992694507,0.0323,60833.0,60832.0,0.204196]
[1727992695199,0.0323,60833.0,60832.0,0.203196]
[1727992695404,0.0323,60833.0,60832.0,0.204196]
[1727992697712,0.3608,60835.0,60832.0,0.61516]
[1727992697918,0.3608,60835.0,60834.0,0.082194]
[1727992699110,0.114688,60839.0,60834.0,0.082194]
[1727992699315,0.114688,60839.0,60838.0,0.12]
[1727992700621,0.114688,60839.0,60838.0,0.121]
[1727992702210,0.114688,60839.0,60838.0,0.122]
[1727992705314,0.0325,60839.0,60838.0,0.204189]
[1727992705716,0.36326611,60840.0,60839.0,0.082188]
[1727992706923,0.00246611,60840.0,60839.0,0.082188]
[1727992707314,0.00246611,60840.0,60839.0,0.083188]
[1727992707620,0.00246611,60840.0,60839.0,0.084188]
[1727992708509,0.00246611,60840.0,60839.0,0.09253921]
[1727992709312,0.00246611,60840.0,60839.0,0.09153921]
[1727992709515,0.00246611,60840.0,60839.0,0.09253921]
[1727992710322,0.00246611,60840.0,60839.0,0.09153921]
[1727992710511,0.00246611,60840.0,60839.0,0.09253921]
[1727992718219,0.02995693,60847.0,60839.0,1.09512]
[1727992718527,0.434966,60855.0,60851.0,0.08217]
[1727992718728,0.04203742,60854.0,60852.0,0.08217]
[1727992718920,0.3528,60855.0,60854.0,0.082167]
[1727992719239,0.39493818,60855.0,60854.0,0.202167]
[1727992719424,0.3528,60855.0,60854.0,0.202167]
[1727992720223,0.3528,60855.0,60854.0,0.203167]
[1727992720712,0.3528,60855.0,60854.0,0.204167]
[1727992721834,0.39499554,60855.0,60854.0,0.204167]
[1727992722720,0.39499554,60855.0,60854.0,0.23331706]
[1727992723227,0.3528,60855.0,60854.0,0.23331706]
[1727992724327,0.0319,60859.0,60858.0,0.082162]
[1727992724532,0.0319,60859.0,60858.0,0.202162]
[1727992725416,0.0319,60859.0,60858.0,0.203162]
[1727992725623,0.0319,60859.0,60858.0,0.204162]
[1727992729631,0.082161,60859.0,60858.0,0.002]
[1727992729827,0.082161,60859.0,60858.0,0.122]
[1727992730429,0.082161,60859.0,60858.0,0.002]
[1727992730826,0.082161,60859.0,60858.0,0.122]
[1727992731732,0.082161,60859.0,60858.0,0.002]
[1727992731946,0.0624,60860.0,60854.0,0.02915006]
[1727992731947,0.082166,60855.0,60854.0,0.02915006]
[1727992732235,0.082167,60854.0,60849.0,0.12]
[1727992732426,0.082174,60850.0,60849.0,0.12]
[1727992733539,0.082176,60848.0,60847.0,0.43707848]
[1727992733739,0.082176,60848.0,60847.0,0.55707848]
[1727992735326,0.113576,60848.0,60847.0,0.55707848]
[1727992735842,0.113576,60848.0,60839.0,0.12]
[1727992735843,1.12744,60848.0,60839.0,0.12]
[1727992736040,1.12744,60848.0,60838.0,0.00246486]
[1727992736041,0.082188,60839.0,60838.0,0.00246486]
[1727992736230,0.082188,60839.0,60838.0,0.12246486]
[1727992736433,0.082188,60839.0,60836.0,0.12]
[1727992736736,0.08219,60837.0,60836.0,0.15011275]
[1727992736940,0.08219,60837.0,60836.0,0.12]
[1727992738439,0.12334081,60837.0,60836.0,0.12]
[1727992738640,0.12434081,60837.0,60836.0,0.12]
[1727992738948,0.08991756,60837.0,60835.0,0.02920132]
[1727992739139,0.04115081,60836.0,60830.0,0.082199]
[1727992739344,0.082192,60836.0,60835.0,0.12]
[1727992739537,0.15551916,60836.0,60835.0,0.12]
[1727992739843,0.51631916,60836.0,60835.0,0.12]
[1727992741054,0.51731916,60836.0,60835.0,0.12]
[1727992741347,0.51730922,60836.0,60835.0,0.12]
[1727992741846,0.51830922,60836.0,60835.0,0.12]
[1727992742175,0.082196,60833.0,60830.0,0.082199]
[1727992742446,0.082196,60833.0,60832.0,0.12]
[1727992742946,0.442996,60833.0,60832.0,0.12]
[1727992743642,0.443996,60833.0,60832.0,0.12]
[1727992744042,0.083196,60833.0,60832.0,0.12]
[1727992744242,0.443996,60833.0,60832.0,0.12]
[1727992745041,0.443996,60833.0,60832.0,0.122]
[1727992745849,0.443996,60833.0,60832.0,0.002]
[1727992746152,0.083196,60833.0,60832.0,0.002]
[1727992746655,0.083196,60833.0,60832.0,0.122]
[1727992746851,0.001,60833.0,60832.0,0.204197]
[1727992747040,0.001,60833.0,60832.0,0.697357]
[1727992747543,0.001,60833.0,60832.0,2.197357]
[1727992747944,0.001,60833.0,60832.0,1.704197]
[1727992748841,0.001,60833.0,60832.0,2.064997]
[1727992750242,0.001,60833.0,60832.0,1.704197]
[1727992750451,0.001,60833.0,60832.0,2.064997]
[1727992751940,0.001,60833.0,60832.0,1.704197]
[1727992752135,0.001,60833.0,60832.0,2.064997]
[1727992755749,0.001,60833.0,60832.0,2.129397]
[1727992756149,0.001,60833.0,60832.0,1.768597]
[1727992758553,0.001,60833.0,60832.0,0.115597]
[1727992758764,0.001,60833.0,60832.0,0.002]
[1727992759061,0.001,60833.0,60832.0,0.122]
[1727992763043,0.001,60833.0,60832.0,0.17116312]
[1727992763546,0.001,60833.0,60832.0,1.67116312]
[1727992764453,0.001,60833.0,60832.0,1.622]
[1727992764760,0.001,60833.0,60832.0,1.67123986]
[1727992765146,0.001,60833.0,60832.0,0.17123986]
[1727992766547,0.001,60833.0,60832.0,0.122]
[1727992767445,0.001,60833.0,60832.0,0.204197]
[1727992773158,0.04193443,60833.0,60832.0,0.204197]
[1727992774069,0.04193443,60833.0,60832.0,0.084197]
[1727992774265,0.04193443,60833.0,60832.0,0.204197]
[1727992774569,0.001,60833.0,60832.0,0.204197]
[1727992779860,0.001,60833.0,60832.0,0.28638529]
[1727992781060,0.001,60833.0,60832.0,0.39362466]
[1727992781263,0.001,60833.0,60832.0,1.89362466]
[1727992783563,0.001,60833.0,60832.0,1.704197]
[1727992783969,0.04195789,60833.0,60832.0,1.704197]
[1727992784664,0.04195789,60833.0,60832.0,0.204197]
[1727992785070,0.04195789,60833.0,60832.0,1.704197]
[1727992788667,0.04195831,60833.0,60832.0,1.704197]
[1727992790062,0.04195831,60833.0,60832.0,0.204197]
[1727992790576,0.001,60833.0,60832.0,0.39364917]
[1727992793568,0.001,60833.0,60832.0,0.39379681]
[1727992794161,0.001,60833.0,60832.0,0.31160852]
[1727992794771,0.001,60833.0,60832.0,0.3938247]
[1727992795564,0.001,60833.0,60832.0,0.28641318]
[1727992796277,0.001,60833.0,60832.0,0.39382566]
[1727992797565,0.001,60833.0,60832.0,0.39382208]
[1727992798578,0.001,60833.0,60832.0,0.204197]
[1727992801575,0.3608,60844.0,60836.0,0.082192]
[1727992801779,0.0314,60851.0,60844.0,0.082181]
[1727992802082,0.082176,60848.0,60846.0,0.0493194]
[1727992802378,0.082176,60848.0,60847.0,0.12]
[1727992803171,0.083176,60848.0,60847.0,0.12]
[1727992804282,0.084176,60848.0,60847.0,0.121]
[1727992805480,0.12538657,60848.0,60847.0,0.121]
[1727992805675,0.17323388,60848.0,60847.0,0.121]
[1727992805984,0.12538657,60848.0,60847.0,0.121]
[1727992806580,0.12538004,60848.0,60847.0,0.121]
[1727992806880,0.17321211,60848.0,60847.0,0.15039986]
[1727992807075,0.17321862,60848.0,60847.0,0.15039986]
[1727992807780,0.17321862,60848.0,60847.0,0.15139986]
[1727992807781,0.17221862,60848.0,60847.0,0.15139986]
[1727992808174,0.12438004,60848.0,60847.0,0.15139986]
[1727992809381,1.25524404,60848.0,60832.0,0.3608]
[1727992809582,0.082196,60833.0,60832.0,0.3608]
[1727992809775,0.12,60833.0,60827.0,0.3608]
[1727992809976,0.12,60833.0,60824.0,0.4604]